Cogmind - Beta 15 @@@ ROGUE MODE // 2025.05.12 @ 13:51:16 Player: H0-R5E Result: Self-destructed Performance ------------- Evolutions (5) 2500 Regions Visited (14) 2800 Robots Destroyed (170) 850 Value Destroyed (6049) 6049 Prototype IDs (19) 380 Alien Tech Used (0) 0 Bonus (4465) 4465 TOTAL SCORE: 17044 Bonus ------- High Alert Combat Kills 436 Follower Combat Kills 2629 Network Hubs Disabled 200 Met Imprinter 300 Was Imprinted 300 Built Enhanced Grunts 300 A7 Reached Mainframe 300 Cogmind --------- Core Integrity 671/1000 Matter 299/300 Energy 15/100 System Corruption 2% Temperature Cool (0) Movement Core (250) Ox4 Location -5/Factory Parts ------- > --- POWER (2) -------- (None) > --- PROPULSION (4) --- (None) > --- UTILITY (9) ------ Medium Storage Unit Core Analyzer Armor Integrity Analyzer Jamming Amplifier Improved Hacking Suite Improved System Shield > --- WEAPON (2) ------- Gauss Rifle > --- INVENTORY (10) --- Backup Power VII Backup Power VII Advanced Energy Well (500) Matter Compressor (250) Improved Weapon Cycler Trap Extractor (0/4) Bomb Factory No. 2 Advanced Datajack Peak State ------------ > --- POWER ------------ Quantum Reactor Quantum Reactor > --- PROPULSION ------- Carbon-fiber Leg Enhanced Flexi-carbon Leg Myomer Leg Myomer Leg > --- UTILITY ---------- Medium Storage Unit Advanced Energy Well Core Analyzer Armor Integrity Analyzer Centrium Medium Armor Plating Centrium Medium Armor Plating Experimental Thermal Shield > --- WEAPON ----------- Advanced KE Penetrator Advanced KE Penetrator > --- INVENTORY -------- Matter Compressor Improved Hacking Suite Improved System Shield Z-Drone Bay Bomb Factory No. 2 Heavy Beamcaster Advanced Datajack Powered Hammer Ripper [Rating: 107] Favorites ----------- Power Micro Nuclear Core Engine Improved Deuterium Engine Power Core Micro Nuclear Core Reactor Quantum Reactor Propulsion Carbon-fiber Leg Leg Carbon-fiber Leg Wheel Compact Wheel Hover Unit Backup Propulsion VII Utility Medium Storage Unit Device Microactuators Storage Medium Storage Unit Processor Core Analyzer Hackware Improved Hacking Suite Protection Hardened Medium Armor Plating Weapon Great Axe Energy Gun EM Pulse Gun Ballistic Gun Gauss Rifle Ballistic Cannon Gauss Cannon Launcher Heavy Rocket Launcher Impact Weapon Powered Hammer Slashing Weapon Great Axe Piercing Weapon CR-A16's Pointy Stick Build | -11 -10 -9 -8 -7 -7 -7 -7 -6 -6 -6 -6 -6 -6 -5 ------- Run | Yrd Mat Mat Mat Fac Low Low Zio Pro Fac Ext Cet Arc Hub Fac Slots Evolved 10 | . . 2 2 2 . . . . 2 . . . . 2 Power 1 | . . . 1 . . . . . . . . . . . Propulsion 2 | . . 1 . 1 . . . . . . . . . . Utility 7 | . . 1 1 1 . . . . 2 . . . . 2 Weapon . | . . . . . . . . . . . . . . . Parts Attached 141 | 6 6 26 4 26 4 2 1 11 3 20 4 6 7 15 Power 20 | 1 1 3 1 3 1 1 . 3 . 1 2 . . 3 Engine 11 | 1 1 2 1 2 . . . 3 . . . . . 1 Core 6 | . . 1 . 1 1 1 . . . 1 . . . 1 Reactor 3 | . . . . . . . . . . . 2 . . 1 Propulsion 39 | 2 . 10 1 6 . . . 2 1 8 . 2 3 4 Treads . | . . . . . . . . . . . . . . . Leg 35 | . . 10 1 5 . . . 2 1 8 . 2 3 3 Wheel 4 | 2 . . . 1 . . . . . . . . . 1 Hover . | . . . . . . . . . . . . . . . Flight . | . . . . . . . . . . . . . . . Utility 50 | 1 2 8 2 7 2 1 . 4 2 7 1 3 3 7 Device 20 | . 2 1 . 3 1 1 . 1 1 2 . 2 2 4 Storage 6 | 1 . 2 1 . . . . . . 1 . . 1 . Processor 7 | . . 1 . . . . . 2 1 2 . . . 1 Hackware 3 | . . 1 . . . . . . . . . . . 2 Protection 14 | . . 3 1 4 1 . . 1 . 2 1 1 . . Artifact . | . . . . . . . . . . . . . . . Weapon 32 | 2 3 5 . 10 1 . 1 2 . 4 1 1 1 1 Energy Gun 7 | 1 2 . . 3 . . . . . 1 . . . . Energy Cannon . | . . . . . . . . . . . . . . . Ballistic Gun 7 | 1 . . . 1 . . . 2 . . 1 1 . 1 Ballistic Cannon 1 | . . . . . . . . . . 1 . . . . Launcher 4 | . 1 1 . 1 . . . . . . . . 1 . Special Weapon . | . . . . . . . . . . . . . . . Impact Weapon 1 | . . . . . 1 . . . . . . . . . Slashing Weapon 11 | . . 4 . 5 . . . . . 2 . . . . Piercing Weapon 1 | . . . . . . . 1 . . . . . . . Special Melee Weapon . | . . . . . . . . . . . . . . . Unidentified Prototypes 10 | . . 1 . 3 . . . . 1 . 2 1 2 . Parts Lost 58 | . 1 4 . 7 3 1 . 3 . 7 3 4 11 14 Power 11 | . . 1 . 2 1 . . . . 1 1 . 2 3 Propulsion 18 | . . 2 . 2 1 1 . 1 . . 1 2 4 4 Utility 21 | . . 1 . 3 1 . . . . 6 1 2 3 4 Weapon 8 | . 1 . . . . . . 2 . . . . 2 3 Highest Loss Streak 11 | . 1 2 . 3 1 1 . 2 . 2 3 4 9 11 To Critical Strikes 2 | . . . . . . . . 1 . . 1 . . . Average Backups 8 | 5 7 9 9 9 8 9 8 8 8 8 9 7 8 7 Power . | . . . . . . . . . 1 . . . . 1 Propulsion . | 2 2 1 . . . . . . . 1 2 . . . Utility 4 | . 2 2 2 3 5 6 6 6 5 3 3 4 5 4 Weapon 3 | 1 3 5 5 5 3 3 1 1 2 3 3 3 2 . Tool/Special . | . . . . . . . . . . . . . . . Unused Backups 14 | 1 1 3 2 . . . 1 . . 2 . . 1 3 Power . | . . . . . . . . . . . . . . . Propulsion 3 | 1 1 . . . . . . . . 1 . . . . Utility 2 | . . . . . . . . . . . . . . 2 Weapon 8 | . . 3 2 . . . 1 . . 1 . . 1 . Tool/Special 1 | . . . . . . . . . . . . . . 1 Average Slot Usage (%) 95 | . 100 96 95 97 99 92 90 95 93 99 93 92 92 83 Engine 6 | . 14 2 14 9 4 . . 9 13 11 . . . 2 Core 5 | . . 8 . 4 9 14 15 4 . 1 1 . . 4 Reactor 1 | . . . . . . . . . . . 10 13 12 2 Leg 23 | . . 27 27 28 29 23 23 26 24 26 21 20 22 7 Wheel 1 | . 28 3 . . . . . . . . . . . 1 Device 14 | . 14 7 4 12 15 15 23 17 20 18 7 7 9 13 Storage 7 | . 14 11 9 7 7 7 7 7 6 6 6 6 6 5 Processor 7 | . . 3 9 5 . . . 4 8 14 20 20 15 16 Hackware 1 | . . 4 . . . . . . . . . . . 10 Protection 8 | . . 5 13 10 14 14 7 7 6 4 11 11 12 . Energy Gun 1 | . 15 . . 1 . . . . . . . . . 3 Ballistic Gun 3 | . 8 . . . . . . 5 13 5 4 12 10 3 Launcher 1 | . 3 2 . . 4 6 . . . . . . 1 . Impact Weapon 1 | . . . . . 2 . 5 4 . . . . . . Slashing Weapon 7 | . . 18 17 10 6 7 3 . . 6 7 . . 2 Peak Build Rating 107 | 7 9 21 22 46 46 43 41 52 63 70 82 99 107 87 Average Rating 47 | 4 7 17 20 36 43 41 40 47 58 63 78 94 96 76 On Entrance 40 | . 7 8 18 22 45 40 41 41 47 57 68 82 99 34 Naked Turns . | . . . . . . . . . . . . . . . Heaviest Build 84 | 13 16 27 35 68 68 58 43 54 84 70 79 81 82 46 Greatest Support 95 | 26 26 33 36 65 65 60 50 70 75 85 85 95 93 30 Greatest Overweight (x) 5 | . . 1 . 3 1 1 . . 1 . 1 1 1 5 Average Overweight (x) . | . . . . . . . . . . . . . . . Largest Inventory Capacity 10 | 8 8 10 10 10 10 10 10 10 10 10 10 10 10 10 Average Capacity 9 | 7 8 9 10 10 10 10 10 10 10 10 10 10 10 10 Most Carried 10 | 8 8 10 10 10 10 10 10 10 10 10 10 10 10 10 Average Carried 9 | 5 7 9 9 9 9 10 9 9 9 9 9 8 9 8 Final Capacity 10 | 8 8 10 10 10 10 10 10 10 10 10 10 10 10 10 Final Carried 10 | 8 8 9 10 10 10 10 10 10 10 10 10 10 9 9 Class Distribution -------------------- 62% | Scavenger-Mutant 21% | Scavenger-Gladiator 10% | Mutant 4% | Commander-Mutant Dominant Class ---------------- Mutant | -10/Materials Scavenger-Mutant | -9/Materials Scavenger-Mutant | -8/Materials Scavenger-Mutant | -7/Factory Scavenger-Mutant | -7/Lower Caves Scavenger-Mutant | -7/Lower Caves Scavenger-Gladiator | -7/Zion Scavenger-Gladiator | -6/Proximity Caves Mutant | -6/Factory Scavenger-Mutant | -6/Extension Scavenger-Mutant | -6/Cetus Scavenger-Mutant | -6/Archives Scavenger-Mutant | -6/Hub_04(d) Scavenger-Mutant | -5/Factory Resources | -11 -10 -9 -8 -7 -7 -7 -7 -6 -6 -6 -6 -6 -6 -5 ----------- Run | Yrd Mat Mat Mat Fac Low Low Zio Pro Fac Ext Cet Arc Hub Fac Matter Collected 3937 | 272 140 480 100 676 107 126 74 248 . 860 50 103 482 219 Remotely . | . . . . . . . . . . . . . . . Salvage Created 7408 | 111 388 1152 460 2034 268 73 . 541 . 1076 39 133 763 370 Parts 381 | 8 27 73 20 109 9 7 . 33 . 23 1 14 38 19 Haulers Intercepted 7 | . 1 2 . 4 . . . . . . . . . . Recyclers Shooed 1 | . . 1 . . . . . . . . . . . . Parts Field Recycled . | . . . . . . . . . . . . . . . Retrieved Matter . | . . . . . . . . . . . . . . . Parts Self-Destructed 44 | . . . . . 6 4 . 34 . . . . . . Prevented 13 | . . . . . 1 2 . 10 . . . . . . Kills | -11 -10 -9 -8 -7 -7 -7 -7 -6 -6 -6 -6 -6 -6 -5 ------- Run | Yrd Mat Mat Mat Fac Low Low Zio Pro Fac Ext Cet Arc Hub Fac Combat Hostiles Destroyed 127 | . 8 25 6 35 5 8 . 11 . 10 . . 12 7 Melee 64 | . . 16 4 24 4 . . 6 . 6 . . 1 3 Guns 32 | . 8 . . 2 . . . 5 . 2 . . 11 4 Cannons 2 | . . . . . . . . . . 2 . . . . AOE 28 | . . 9 2 9 . 8 . . . . . . . . Classes Destroyed 18 | 2 4 4 . 1 1 . . . . 2 . 1 3 . Worker 4 | . . 2 . 1 . . . . . . . . 1 . Builder 6 | . . 2 . 3 . . . . . . . . 1 . Tunneler 3 | 1 . . 1 . . . . . . . . . 1 . Hauler 7 | . 1 2 . 4 . . . . . . . . . . Recycler 11 | 1 . . 2 4 . . . . . 4 . . . . Mechanic 1 | . . . . . . . . . . 1 . . . . Operator 4 | . . . . . . . . . . . . 4 . . Drone 1 | . . . . . . . . . . . . . 1 . Watcher 7 | . 1 4 . . . . . . . . 1 . 1 . Swarmer 29 | . 3 2 . 8 . 8 . 4 . 1 . . 1 2 Saboteur 1 | . . . . . . . . . . . . . 1 . Grunt 64 | . 5 16 3 18 1 . . 4 . 7 . . 7 3 Brawler 1 | . . . . . 1 . . . . . . . . . Duelist 4 | . . 1 . 1 1 . . . . 1 . . . . Sentry 20 | . . 6 3 5 1 . . 2 . . . . 2 1 Specialist 1 | . . . . . . . . . . 1 . . . . Hunter 2 | . . . . . . . . . . . . . 1 1 Programmer 5 | . . . . 3 1 . . 1 . . . . . . Best Kill Streak 10 | 2 4 9 4 10 3 8 . 4 . 3 1 2 8 3 Combat Bots Only 10 | . 3 4 3 10 3 8 . 4 . 3 . . 4 3 Max Kills in Single Turn 3 | 1 1 3 2 2 1 2 . 1 . 1 1 1 3 1 Gunslinging . | . . . . . . . . . . . . . . . Exploded 3 | . . 3 2 2 . 2 . . . . . . . . Melee 1 | . . 1 1 1 1 . . 1 . 1 . . 1 1 Uniques/NPCs Destroyed . | . . . . . . . . . . . . . . . Combat | -11 -10 -9 -8 -7 -7 -7 -7 -6 -6 -6 -6 -6 -6 -5 -------- Run | Yrd Mat Mat Mat Fac Low Low Zio Pro Fac Ext Cet Arc Hub Fac Hostile Shots Fired 1066 | . 24 122 17 296 64 22 . 64 . 140 40 18 137 122 Missed 322 | . 8 30 5 99 24 8 . 22 . 56 10 3 30 27 Hits 744 | . 16 92 12 197 40 14 . 42 . 84 30 15 107 95 Melee 7 | . . . . 3 2 . . . . 1 . . 1 . Projectile 737 | . 16 92 12 194 38 14 . 42 . 83 30 15 106 95 AOE 1 | . . . . . . . . . . . . . . 1 Critical Strikes 25 | . . 2 . 4 2 1 . 3 . 4 1 1 5 2 Part Disruptions 2 | . . . . . . . . . . 2 . . . . Damage Taken 10593 | . 197 1223 184 1655 384 200 . 782 . 1060 703 437 2184 1584 Core 1514 | . 9 312 16 96 28 17 . 128 . 98 123 . 358 329 Absorbed by Shields 1320 | . . . . 618 . . . 156 . 349 161 36 . . Ignored by Resistances 548 | . . . . . 60 68 . . . 101 . . 250 69 Regen/Repaired (Parts) 257 | . . 49 . 189 . . 19 . . . . . . . Core Remaining (%) 67 | 100 96 22 97 . . . . 61 . . . . 31 . Volleys Fired 203 | 4 37 11 1 22 . 12 . 9 . 34 . 18 35 20 Largest 2 | 2 2 1 1 2 . 1 . 2 . 2 . 2 2 2 Hottest 116 | 60 80 30 30 92 . 39 . 56 . 109 . 70 78 116 Shots Fired 327 | 8 65 11 1 28 . 12 . 18 . 54 . 36 67 27 Gun 268 | 8 62 . . 13 . . . 18 . 41 . 36 63 27 Cannon 13 | . . . . . . . . . . 13 . . . . Launcher 46 | . 3 11 1 15 . 12 . . . . . . 4 . Special . | . . . . . . . . . . . . . . . Kinetic 219 | 4 20 . . 7 . . . 18 . 51 . 36 63 20 Thermal 20 | 4 . . . 6 . . . . . 3 . . . 7 Explosive 42 | . 3 11 1 15 . 12 . . . . . . . . Electromagnetic 46 | . 42 . . . . . . . . . . . 4 . Robot Hit Streak 10 | 3 10 3 4 8 . 1 . 5 . 9 . 9 8 9 Robot Miss Streak 7 | 1 3 1 . 3 . 7 . 2 . 3 . 6 2 2 Penetration Max 1 | . . . . . . . . 1 . 1 . . 1 . Secondary Targets 4 | . 1 . . . . . . . . 1 . . 1 1 Max Gunslinging Chain 1 | . 1 . . . . . . . . 1 . . 1 1 Shots Hit Robots 420 | 5 36 60 17 89 15 2 . 30 . 63 13 18 46 26 Core Hits 266 | 3 18 43 9 63 4 11 . 15 . 33 6 10 38 13 Critical Kills 13 | . . . . . 2 . . 2 . 1 . 2 4 2 Critical Parts Destroyed 12 | . . . . . 1 . . . . 1 . . 7 3 Critical Strikes 56 | . . 7 2 11 5 . . 4 . 6 . 2 12 7 Burn 3 | . . . . 1 . . . . . . . . . 2 Destroy 21 | . . . . . . . . 1 . 2 . 2 11 5 Blast 1 | . . . . . . . . . . 1 . . . . Smash 5 | . . . . . 4 . . 1 . . . . . . Sever 26 | . . 7 2 10 1 . . 2 . 3 . . 1 . Melee Attacks 308 | . . 73 18 102 23 . 1 25 . 37 19 . 3 7 Impact 25 | . . . . . 15 . . 9 . 1 . . . . Slashing 270 | . . 73 18 102 8 . . 4 . 36 19 . 3 7 Piercing 13 | . . . . . . . 1 12 . . . . . . Sneak Attacks 32 | . . 8 5 14 . . . . . 5 . . . . Combat Hostiles 2 | . . . . 2 . . . . . . . . . . Follow-up Attacks 23 | . . 5 2 5 3 . . 3 . 2 3 . . . Damage Inflicted 17877 | 55 500 2906 814 5246 610 758 . 1021 . 2044 512 520 2162 729 Guns 4209 | 55 465 . . 147 . . . 227 . 684 . 520 1572 539 Cannons 246 | . . . . . . . . . . 246 . . . . Explosions 3584 | . 35 825 128 1286 . 758 . . . . . . 552 . Melee 9809 | . . 2081 686 3784 610 . . 794 . 1114 512 . 38 190 Ramming 29 | . . . . 29 . . . . . . . . . . Kinetic 3851 | 34 124 . . 89 . . . 227 . 884 . 520 1572 401 Thermal 285 | 21 22 . . 58 . . . . . 46 . . . 138 Explosive 3010 | . 13 825 128 1286 . 758 . . . . . . . . Electromagnetic 893 | . 341 . . . . . . . . . . . 552 . Impact 815 | . . . . . 507 . . 308 . . . . . . Slashing 8719 | . . 2081 686 3784 103 . . 211 . 1114 512 . 38 190 Piercing 275 | . . . . . . . . 275 . . . . . . Highest Corruption 17 | . . . . 6 6 6 6 2 . 2 2 2 17 2 Average Corruption 3 | . . . . 3 6 6 6 2 . 1 1 1 8 1 Corruption Purged 3 | . . . . . . . . . . 1 . 2 . . Corruption Blocked . | . . . . . . . . . . . . . . . Effects 71 | . . . . 17 24 7 2 2 . 3 10 1 5 . Message Errors 15 | . . . . 3 5 3 . . . 1 2 . 1 . Matter Fused 14 | . . . . 5 4 1 1 . . . 2 . 1 . Heat Flow Errors 11 | . . . . 1 6 1 . . . 1 2 . . . Energy Discharges 9 | . . . . 1 4 2 . 1 . . . 1 . . Parts Rejected 1 | . . . . . 1 . . . . . . . . . Parts Fused 1 | . . . . . 1 . . . . . . . . . Data Loss (minor) 11 | . . . . 5 2 . 1 1 . . 2 . . . Data Loss (major) 6 | . . . . 2 . . . . . 1 1 . 2 . Alerts 2 | . . . . . 1 . . . . . 1 . . . Misdirections 1 | . . . . . . . . . . . . . 1 . Overload Shots . | . . . . . . . . . . . . . . . Overflow Damage 726 | . . 199 82 132 164 41 . 26 . 52 3 . 27 . Projectiles . | . . . . . . . . . . . . . . . Explosions 102 | . . 22 . 12 . 41 . . . . . . 27 . Melee 624 | . . 177 82 120 164 . . 26 . 52 3 . . . Knockbacks 5 | . . . . . 2 . . . . 3 . . . . Impact 2 | . . . . . 2 . . . . . . . . . Kinetic 3 | . . . . . . . . . . 3 . . . . Secondary . | . . . . . . . . . . . . . . . Self-Inflicted Damage 282 | . 25 53 . 30 . 68 . . . . . . 106 . Shots 8 | . 1 2 . 1 . 2 . . . . . . 2 . Rammed . | . . . . . . . . . . . . . . . Targets Rammed . | . . . . . . . . . . . . . . . Kicked . | . . . . . . . . . . . . . . . Crushed . | . . . . . . . . . . . . . . . Highest Temperature 343 | . 123 21 17 338 287 267 . 21 . 217 275 204 343 273 Average Temperature 101 | . 42 8 15 131 110 158 . 8 . 53 101 76 126 121 Received Heat Transfer 2450 | . 81 588 54 479 69 . . 92 . 364 99 48 321 255 Effects 9 | . . . . 2 . 1 . . . 2 . . 3 1 Energy Bleed 3 | . . . . 1 . 1 . . . . . . . 1 Interference 6 | . . . . 1 . . . . . 2 . . 3 . Siege Activations . | . . . . . . . . . . . . . . . Martial Activations . | . . . . . . . . . . . . . . . Shielding Activations . | . . . . . . . . . . . . . . . Robots Disrupted . | . . . . . . . . . . . . . . . Combat Hostiles . | . . . . . . . . . . . . . . . Robots Corrupted 1 | . . . . . 1 . . . . . . . . . Combat Hostiles 1 | . . . . . 1 . . . . . . . . . Parts Fried 2 | . 1 . . . 1 . . . . . . . . . Impact Corruptions 8 | . . . . . 7 . . 1 . . . . . . Robots Melted . | . . . . . . . . . . . . . . . Combat Hostiles . | . . . . . . . . . . . . . . . Parts Melted 5 | . . . . 1 . . . 2 . . . . . 2 Heat Transferred 729 | 50 50 . . 185 . . . . . 74 . . . 370 Parts Sabotaged 2 | . . . . . . . . . . . . . 2 . Parts Stolen . | . . . . . . . . . . . . . . . Parts Stripped . | . . . . . . . . . . . . . . . Power Chain Reactions 1 | . 1 . . . . . . . . . . . . . Alert | -11 -10 -9 -8 -7 -7 -7 -7 -6 -6 -6 -6 -6 -6 -5 ------- Run | Yrd Mat Mat Mat Fac Low Low Zio Pro Fac Ext Cet Arc Hub Fac Maximum Alert Level 3 | . . 1 1 2 . . . . . 3 2 1 3 2 Low Security (%) 41 | 100 100 24 98 64 . . . . 100 30 . 11 15 . Level 1 29 | . . 75 1 22 . . . . . 6 15 88 10 76 Level 2 21 | . . . . 13 . . . . . 40 84 . 41 23 Level 3 7 | . . . . . . . . . . 22 . . 32 . Level 4 . | . . . . . . . . . . . . . . . Level 5 . | . . . . . . . . . . . . . . . High Security . | . . . . . . . . . . . . . . . Max Security . | . . . . . . . . . . . . . . . Peak Influence 1041 | 5 131 374 203 654 . . . . 118 857 513 300 1041 435 Initial 477 | . . 34 119 58 . . . . 118 37 477 144 79 421 Average 298 | . 62 247 144 184 . . . . 100 442 448 250 570 368 Influence Increases 7039 | 10 279 891 200 1203 125 180 . 523 . 1763 105 274 1248 238 Destroy 0b10 Robot/C 3920 | . 160 500 120 700 100 160 . 380 . 1040 80 80 460 140 Destroy 0b10 Robot/NC 230 | 10 10 50 15 60 . . . . . 35 5 20 25 . Destroy Leader 722 | . 44 162 40 168 10 20 . 40 . 114 . . 94 30 Allied During Kill 943 | . . . . . . . . 73 . 443 8 100 319 . Trap Triggered on 0b10 30 | . . . . . . . . . . . . . . 30 Successful Hack 147 | . 22 47 16 5 . . . . . 21 12 . . 24 Disable Machine 330 | . . 30 . 30 . . . . . 45 . 60 165 . Destroy Structure 372 | . 28 72 9 60 . . . . . 35 . 14 140 14 Partial Spotted 15 | . . . . 15 . . . . . . . . . . Lose Combat Pursuer 330 | . 15 30 . 165 15 . . 30 . 30 . . 45 . Influence Decreases 6784 | 10 196 690 355 684 669 201 83 335 110 987 597 408 615 844 Entered New Map 1925 | . . 49 165 71 241 21 83 . 70 41 377 218 149 440 Time Decay 3589 | 10 186 451 190 523 398 170 . 245 40 556 190 130 246 254 Lost Part 580 | . 10 40 . 70 30 10 . 30 . 70 30 40 110 140 Lost Ally 540 | . . . . 20 . . . 60 . 320 . 20 110 10 Purge Threat 150 | . . 150 . . . . . . . . . . . . Squads Dispatched 37 | . 3 8 3 9 . . . . . 5 . . 7 2 Investigation 20 | . 2 5 3 3 . . . . . 4 . . 2 1 Extermination 3 | . . . . 2 . . . . . . . . . 1 Reinforcement 12 | . 1 3 . 4 . . . . . . . . 4 . Assault 2 | . . . . . . . . . . 1 . . 1 . Garrison . | . . . . . . . . . . . . . . . Intercept . | . . . . . . . . . . . . . . . Searches Triggered . | . . . . . . . . . . . . . . . Construction Impeded 1 | . . . . . . . . . . . . . 1 . Haulers Reinforced 4 | . . . . 4 . . . . . . . . . . Active Scanning Responses . | . . . . . . . . . . . . . . . Cargo Convoy Interrupts . | . . . . . . . . . . . . . . . Stealth | -11 -10 -9 -8 -7 -7 -7 -7 -6 -6 -6 -6 -6 -6 -5 --------- Run | Yrd Mat Mat Mat Fac Low Low Zio Pro Fac Ext Cet Arc Hub Fac Distress Signals 13 | . 2 3 1 2 . . . . . . 1 . 3 1 Communications Jammed 2 | . . . . . . . . . . . . . . 2 Distress Signals 2 | . . . . . . . . . . . . . . 2 Times Spotted 260 | . 12 42 9 43 7 6 . 20 . 54 6 17 30 14 Peak Tracking Total 10 | . 5 6 3 6 3 4 . 4 . 6 5 2 10 5 Tactical Retreats 16 | . 1 2 . 6 1 . . 1 . 2 . . 3 . Traps | -11 -10 -9 -8 -7 -7 -7 -7 -6 -6 -6 -6 -6 -6 -5 ------- Run | Yrd Mat Mat Mat Fac Low Low Zio Pro Fac Ext Cet Arc Hub Fac Traps Triggered 3 | . . . . . . . . . . 3 . . . . Indirectly . | . . . . . . . . . . . . . . . Trap Hack Attempts . | . . . . . . . . . . . . . . . Triggered . | . . . . . . . . . . . . . . . Disarmed . | . . . . . . . . . . . . . . . Reprogrammed . | . . . . . . . . . . . . . . . Reused 3 | . . . . . . . . . . . . . . 3 Traps Extracted . | . . . . . . . . . . . . . . . Installed 3 | . . . . . . . . . . . . . . 3 Triggered 3 | . . . . . . . . . . . . . . 3 Fabricated Traps 1 | . . . . . . . . . 1 . . . . . Most Traps Carried 3 | . . . . . . . . . 1 1 . . . 3 Machines | -11 -10 -9 -8 -7 -7 -7 -7 -6 -6 -6 -6 -6 -6 -5 ---------- Run | Yrd Mat Mat Mat Fac Low Low Zio Pro Fac Ext Cet Arc Hub Fac Machines Disabled 28 | . . 2 . 2 . . . 4 . 4 1 4 11 . Max in Single Turn 6 | . . 1 . 1 . . . 1 . 1 1 2 6 . Network Hub 1 | . . . . . . . . . . . . . 1 . Energy Cycler 1 | . . . . . . . . . . 1 . . . . Machines Repaired . | . . . . . . . . . . . . . . . Machines Dismantled . | . . . . . . . . . . . . . . . Machines Sabotaged . | . . . . . . . . . . . . . . . Overloaded Fab Kills . | . . . . . . . . . . . . . . . Hacking | -11 -10 -9 -8 -7 -7 -7 -7 -6 -6 -6 -6 -6 -6 -5 --------- Run | Yrd Mat Mat Mat Fac Low Low Zio Pro Fac Ext Cet Arc Hub Fac Machines Accessed 39 | . 5 10 6 9 . . . . . 4 4 . . 1 Terminals 30 | . 5 8 6 3 . . . . . 4 4 . . . Fabricators 2 | . . . . 2 . . . . . . . . . . Repair Stations 2 | . . 1 . . . . . . . . . . . 1 Recycling Units 2 | . . 1 . 1 . . . . . . . . . . Scanalyzers 2 | . . . . 2 . . . . . . . . . . Garrison Access 1 | . . . . 1 . . . . . . . . . . Total Hacks 117 | . 20 37 21 17 . . . . . 10 8 . . 4 Successful 52 | . 8 18 11 8 . . . . . 3 3 . . 1 Failed 65 | . 12 19 10 9 . . . . . 7 5 . . 3 Catastrophic 11 | . 3 1 2 2 . . . . . . 3 . . . Database Lockouts . | . . . . . . . . . . . . . . . Manual 82 | . 16 19 18 7 . . . . . 7 1 . 11 3 Terminals 97 | . 20 32 21 6 . . . . . 10 8 . . . Fabricators 4 | . . . . 4 . . . . . . . . . . Repair Stations 6 | . . 2 . . . . . . . . . . . 4 Recycling Units 5 | . . 3 . 2 . . . . . . . . . . Scanalyzers 3 | . . . . 3 . . . . . . . . . . Garrison Access 2 | . . . . 2 . . . . . . . . . . Terminal Hacks 26 | . 5 10 5 . . . . . . 3 3 . . . Record 2 | . . . . . . . . . . . 2 . . . Robot Schematic 1 | . 1 . . . . . . . . . . . . . Robot Analysis 5 | . 2 2 1 . . . . . . . . . . . Prototype ID Bank 5 | . 1 4 . . . . . . . . . . . . Open Door 4 | . . . . . . . . . . 3 1 . . . Branch Access Points 1 | . . . 1 . . . . . . . . . . . Terminal Index 2 | . . 1 1 . . . . . . . . . . . Alert Level 1 | . . 1 . . . . . . . . . . . . Unreport Threat 1 | . . 1 . . . . . . . . . . . . Locate Traps 4 | . 1 1 2 . . . . . . . . . . . Fabricator Hacks 4 | . . . . 4 . . . . . . . . . . Load Schematic 2 | . . . . 2 . . . . . . . . . . Build 2 | . . . . 2 . . . . . . . . . . Repair Station Hacks 3 | . . 2 . . . . . . . . . . . 1 Scan Component 1 | . . 1 . . . . . . . . . . . . Repair 1 | . . 1 . . . . . . . . . . . . Refit 1 | . . . . . . . . . . . . . . 1 Recycling Unit Hacks 1 | . . 1 . . . . . . . . . . . . Retrieve Components 1 | . . 1 . . . . . . . . . . . . Scanalyzer . | . . . . . . . . . . . . . . . Garrison Access Hacks . | . . . . . . . . . . . . . . . Unauthorized Hacks 18 | . 3 5 6 4 . . . . . . . . . . Terminals 15 | . 3 4 6 2 . . . . . . . . . . Track 3 | . . 1 2 . . . . . . . . . . . Botnet 11 | . 3 3 3 2 . . . . . . . . . . Operators 1 | . . . 1 . . . . . . . . . . . Fabricators . | . . . . . . . . . . . . . . . Repair Stations . | . . . . . . . . . . . . . . . Recycling Units 2 | . . 1 . 1 . . . . . . . . . . Reject 2 | . . 1 . 1 . . . . . . . . . . Scanalyzers . | . . . . . . . . . . . . . . . Garrison Access 1 | . . . . 1 . . . . . . . . . . Broadcast 1 | . . . . 1 . . . . . . . . . . Data Cores Recovered . | . . . . . . . . . . . . . . . Used . | . . . . . . . . . . . . . . . Hacking Detections 38 | . 5 9 6 9 . . . . . 4 4 . . 1 Full Trace Events 16 | . 3 5 3 3 . . . . . 2 . . . . Feedback Events . | . . . . . . . . . . . . . . . Feedback Blocked . | . . . . . . . . . . . . . . . Robot Schematics Acquired 4 | . 1 . . . . . 3 . . . . . . . Robots Built 2 | . . . . 2 . . . . . . . . . . Authchips . | . . . . . . . . . . . . . . . Time 162 | . . . . 162 . . . . . . . . . . Total Robot Build Rating 2 | . . . . 2 . . . . . . . . . . Part Schematics Acquired 15 | . . . . . . . 15 . . . . . . . Parts Built . | . . . . . . . . . . . . . . . Authchips . | . . . . . . . . . . . . . . . Time . | . . . . . . . . . . . . . . . Total Part Build Rating . | . . . . . . . . . . . . . . . Parts Repaired 1 | . . 1 . . . . . . . . . . . . Time 26 | . . 26 . . . . . . . . . . . . Parts Recycled . | . . . . . . . . . . . . . . . Recycled Matter . | . . . . . . . . . . . . . . . Retrieved Matter . | . . . . . . . . . . . . . . . Retrieved Components 6 | . . 6 . . . . . . . . . . . . Parts Scanalyzed . | . . . . . . . . . . . . . . . Part Schematics Acquired . | . . . . . . . . . . . . . . . Parts Damaged . | . . . . . . . . . . . . . . . Bothacking | -11 -10 -9 -8 -7 -7 -7 -7 -6 -6 -6 -6 -6 -6 -5 ------------ Run | Yrd Mat Mat Mat Fac Low Low Zio Pro Fac Ext Cet Arc Hub Fac Used RIF Installer . | . . . . . . . . . . . . . . . Robots Hacked . | . . . . . . . . . . . . . . . Non-combat . | . . . . . . . . . . . . . . . Combat . | . . . . . . . . . . . . . . . Robot Hacks Applied . | . . . . . . . . . . . . . . . Relay Couplers Released . | . . . . . . . . . . . . . . . Fabnet Peak Effective % . | . . . . . . . . . . . . . . . Robots Rewired 14 | . . . . . . . . . . 14 . . . . Allies Hacked . | . . . . . . . . . . . . . . . Hacks Repelled . | . . . . . . . . . . . . . . . Allies | -11 -10 -9 -8 -7 -7 -7 -7 -6 -6 -6 -6 -6 -6 -5 -------- Run | Yrd Mat Mat Mat Fac Low Low Zio Pro Fac Ext Cet Arc Hub Fac Total Allies 33 | . . . . 2 . . 4 . . 21 5 . . 1 Largest Group 13 | . . . . 1 . . 4 4 . 13 6 6 4 1 Highest-Rated Group 623 | . . . . 14 . . 157 157 . 500 623 623 384 28 Highest-Rated Ally 159 | . . . . 14 . . 41 41 . 159 159 143 96 28 Zionite Dispatches 5 | . . . . . . . . . . 2 . . 2 1 Recon 2 | . . . . . . . . . . . . . 2 . Hero 1 | . . . . . . . . . . 1 . . . . Trap Resupply 1 | . . . . . . . . . . . . . . 1 Hacking Resupply 1 | . . . . . . . . . . 1 . . . . Total Orders 16 | . . . . 6 . . . . . . . . 5 5 STAY 4 | . . . . 2 . . . . . . . . 1 1 ROAM 1 | . . . . . . . . . . . . . . 1 FOLLOW 1 | . . . . . . . . . . . . . . 1 AID 4 | . . . . 4 . . . . . . . . . . DROP 1 | . . . . . . . . . . . . . . 1 COLLECT 1 | . . . . . . . . . . . . . . 1 EXPLORE 3 | . . . . . . . . . . . . . 3 . RETURN 1 | . . . . . . . . . . . . . 1 . Ally Attacks 338 | . . . . . . . . 42 . 182 12 38 64 . Total Damage 8778 | . . . . . . . . 904 . 3904 336 1573 2061 . Kills 75 | . . . . . . . . 8 . 47 4 4 12 . Allies Corrupted 2 | . . . . . . . . . . . . . 2 . Allies Melted . | . . . . . . . . . . . . . . . Intel | -11 -10 -9 -8 -7 -7 -7 -7 -6 -6 -6 -6 -6 -6 -5 ------- Run | Yrd Mat Mat Mat Fac Low Low Zio Pro Fac Ext Cet Arc Hub Fac Active Infowar (turns) 7132 | . 442 989 386 1659 768 355 1083 401 89 482 . . . 478 Sensors 854 | . . . . . . . . 283 89 482 . . . . Terrain 569 | . 51 . . 518 . . . . . . . . . . Structural 1055 | . 391 122 167 375 . . . . . . . . . . Seismic 4565 | . . 621 14 761 768 355 1083 197 40 478 . . . 248 T.N.C. 2158 | . . 308 386 1464 . . . . . . . . . . Jamming 478 | . . . . . . . . . . . . . . 478 Robot Analysis Total 5 | . 2 2 1 . . . . . . . . . . . Derelict Logs Recovered 5 | . . . . . 1 1 1 2 . . . . . . Drone Launches 5 | . . . . . . . . . . . . . 5 . Drone Recoveries 1 | . . . . . . . . . . . . . 1 . Zionite Intel Received 3 | . . . . . . . . . . 1 . . 2 . Main Access 1 | . . . . . . . . . . . . . 1 . Active Terminals 1 | . . . . . . . . . . . . . 1 . Depthwide Sectors/-1 1 | . . . . . . . . . . 1 . . . . Exploration | -11 -10 -9 -8 -7 -7 -7 -7 -6 -6 -6 -6 -6 -6 -5 ------------- Run | Yrd Mat Mat Mat Fac Low Low Zio Pro Fac Ext Cet Arc Hub Fac Turns Passed 10191 | 68 442 1121 386 1750 949 355 1083 587 89 1628 380 274 522 557 Spaces Moved 6048 | 41 296 667 252 931 557 181 862 371 53 1059 183 108 217 270 Core 2 | 1 . . . . . . . . . . . . . 1 Treads . | . . . . . . . . . . . . . . . Legs 5374 | . . 547 252 865 557 181 862 371 53 1059 183 108 217 119 Wheels 664 | 40 296 120 . 66 . . . . . . . . . 142 Hover 8 | . . . . . . . . . . . . . . 8 Flight . | . . . . . . . . . . . . . . . Fastest Speed 50 | 50 90 90 120 120 122 122 123 122 122 120 120 120 120 100 Average Speed 130 | 88 90 115 120 128 158 179 123 122 152 120 175 189 159 142 Slowest Speed 300 | 90 90 190 120 260 193 193 123 123 193 122 190 190 190 300 Overloaded Moves . | . . . . . . . . . . . . . . . Propulsion Burnouts . | . . . . . . . . . . . . . . . Robots Hopped . | . . . . . . . . . . . . . . . Potential Cave-ins . | . . . . . . . . . . . . . . . Cave-ins Triggered 1 | . . . . . . . . 1 . . . . . . Exploration Rate (%) 50 | 4 71 64 29 27 83 37 89 59 3 92 73 79 35 6 Regions Visited 14 Branch Regions 8 Pre-discovered Areas 6 | . . . . . . . . 1 . 5 . . . . Known Exits Taken 3 | . . . . . . . . 1 1 . . . 1 . Unknown Exits Taken 11 | 1 1 1 1 1 1 1 1 . . 1 1 1 . . Scrap Searched 11 | . . . . . 4 1 2 4 . . . . . . Spaces Dug 30 | . 17 1 1 7 1 . . . . . . . 2 1 Terrain Destroyed 493 | . 28 85 8 64 1 99 . . . 20 . 14 165 9 Melee 13 | . . 1 1 7 1 . . . . . . . 2 1 Projectile 50 | . . . . . . . . . . 2 . 14 26 8 AOE 430 | . 28 84 7 57 . 99 . . . 18 . . 137 . Terrain Rammed 1 | . . . . 1 . . . . . . . . . . Walls Destroyed . | . . . . . . . . . . . . . . . Machines Disabled 1 | . . . . 1 . . . . . . . . . . Actions | -11 -10 -9 -8 -7 -7 -7 -7 -6 -6 -6 -6 -6 -6 -5 --------- Run | Yrd Mat Mat Mat Fac Low Low Zio Pro Fac Ext Cet Arc Hub Fac Total 7569 | 63 404 905 309 1285 604 198 885 455 61 1324 218 141 316 401 Wait 568 | 1 55 99 23 156 17 2 12 28 . 48 5 4 43 75 Move 6034 | 40 295 666 251 930 556 180 861 370 52 1058 182 107 216 270 Hop . | . . . . . . . . . . . . . . . Pick Up 81 | 11 5 12 5 13 2 . 3 4 2 12 4 4 2 2 Fast Attach 62 | 4 . 8 1 11 3 2 2 3 1 7 2 1 7 10 Attach 37 | 2 2 2 1 7 1 . . 4 4 4 . 4 1 5 Detach 10 | . . 1 . 1 . . . 2 1 1 . 1 1 2 Swap 110 | . 7 25 7 28 5 1 . 8 . 16 3 2 3 5 Drop 93 | 1 3 18 4 22 2 1 6 6 1 17 6 . 4 2 Fire 203 | 4 37 11 1 22 . 12 . 9 . 34 . 18 35 20 Melee 273 | . . 63 16 94 18 . 1 21 . 34 16 . 3 7 Ram 1 | . . . . 1 . . . . . . . . . . Kick . | . . . . . . . . . . . . . . . Crush . | . . . . . . . . . . . . . . . Escape Stasis 13 | . . . . . . . . . . 13 . . . . Rewire 80 | . . . . . . . . . . 80 . . . . Trap 3 | . . . . . . . . . . . . . . 3 Miscellaneous 1 | . . . . . . . . . . . . . 1 . Route ------- -11/Scrapyard -10/Materials (discovered 3 exits: *Mat x2 / [*Min]) -9/Materials (discovered 2 exits: *Mat / [*Min]) -8/Materials -7/Factory (discovered 2 exits: [*Sto] / [*Low]) -7/Lower Caves -7/Lower Caves -7/Zion -6/Proximity Caves -6/Factory (discovered 2 exits: Fac / *Ext) -6/Extension (discovered 3 exits: *Fac x2 / *Cet) -6/Cetus -6/Archives (discovered 2 exits: *Fac / *Hub) -6/Hub_04(d) (discovered 4 exits: *Fac x4) -5/Factory History --------- Turn | Location | Event 14 | -11/Scrapyard | Discovered new exit (range 16) 69 | -11/Scrapyard | Entered Materials 213 | -10/Materials | Discovered new exit (range 14) 305 | -10/Materials | Discovered new exit (range 12) 315 | -10/Materials | Build established: Mutant 498 | -10/Materials | Discovered new exit (range 9) 511 | -10/Materials | Entered another Materials area 511 | -9/Materials | Evolved 2 slots: Propulsion x1, Utility x1 939 | -9/Materials | Core integrity fell below 50% 1008 | -9/Materials | Build established: Scavenger-Mutant 1068 | -9/Materials | Discovered new exit (range 9) 1105 | -9/Materials | Repaired Aluminum Leg 1566 | -9/Materials | Discovered new exit (range 13) 1632 | -9/Materials | Entered another Materials area 1632 | -8/Materials | Evolved 2 slots: Power x1, Utility x1 2008 | -8/Materials | Discovered new exit (range 3) 2018 | -8/Materials | Entered Factory 2018 | -7/Factory | Evolved 2 slots: Propulsion x1, Utility x1 2231 | -7/Factory | Fabricated M-13 Machinist (x1) 2919 | -7/Factory | Discovered new exit (range 6) 2981 | -7/Factory | Lost 3 parts (1p2n) 3148 | -7/Factory | Fabricated M-13 Machinist (x1) 3276 | -7/Factory | Discovered new exit (range 7) 3588 | -7/Factory | Destroyed 10 combat bots 3768 | -7/Factory | Entered Lower Caves 4187 | -7/Lower Caves | Encountered a Warlord checkpoint 4416 | -7/Lower Caves | Attracted the attention of an 0b10 checkpoint 4419 | -7/Lower Caves | Learned Factory terminal intel 4543 | -7/Lower Caves | Spotted B-75 Beast 4646 | -7/Lower Caves | Build established: Scavenger-Gladiator 4698 | -7/Lower Caves | Discovered new exit (range 16) 4717 | -7/Lower Caves | Entered another Lower Caves area 4787 | -7/Lower Caves | Destroyed 8 combat bots 4836 | -7/Lower Caves | Learned Factory stockpile data 5029 | -7/Lower Caves | Build established: Scavenger-Mutant 5033 | -7/Lower Caves | Discovered new exit (range 14) 5072 | -7/Lower Caves | Entered Zion 5136 | -7/Zion | System corruption cleaned by Quarantine Array 5241 | -7/Zion | Found Prototype Device 5489 | -7/Zion | Learned location of 1 exit from Factory 5544 | -7/Zion | Build established: Scavenger-Gladiator 5548 | -7/Zion | Met Imprinter 5568 | -7/Zion | Imprinted 5570 | -7/Zion | Declared Zion's savior 5648 | -7/Zion | Found CR-A16's Pointy Stick 6040 | -7/Zion | Discovered new exit (range 14) 6155 | -7/Zion | Entered Proximity Caves 6155 | -6/Proximity Caves | Accompanied by 4 allies 6193 | -6/Proximity Caves | Learned 4 Factory zone layouts 6473 | -6/Proximity Caves | Attracted the attention of an 0b10 base 6486 | -6/Proximity Caves | Crushed by falling debris 6520 | -6/Proximity Caves | Lost 3 allies 6698 | -6/Proximity Caves | Attracted the attention of an 0b10 checkpoint 6732 | -6/Proximity Caves | Discovered new exit (range 9) 6741 | -6/Proximity Caves | Identified exit to Factory 6742 | -6/Proximity Caves | Entered Factory 6742 | -6/Factory | Evolved 2 slots: Utility x2 6743 | -6/Factory | Identified exit to Factory 6744 | -6/Factory | Identified Bomb Factory No. 2 6746 | -6/Factory | Loaded intel: 28 terminal locations 6812 | -6/Factory | Discovered new exit (range 15) 6829 | -6/Factory | Identified exit to Extension 6831 | -6/Factory | Entered Extension 6880 | -6/Extension | Zion hero teleported in (AD-0RF) 6993 | -6/Extension | Rescued a captive Derelict 6995 | -6/Extension | Rescued a captive Derelict 7204 | -6/Extension | Disrupted transfer network 7218 | -6/Extension | Build established: Commander-Mutant 7322 | -6/Extension | Spotted B-75 Beast 7328 | -6/Extension | Allies destroyed B-75 Beast 7334 | -6/Extension | Spotted B-75 Beast 7336 | -6/Extension | Allies destroyed B-75 Beast 7375 | -6/Extension | Lost 5 allies 7594 | -6/Extension | Rescued a captive Derelict 7644 | -6/Extension | Rescued a captive Derelict 7734 | -6/Extension | Build established: Scavenger-Mutant 7881 | -6/Extension | First assault squad dispatched 7995 | -6/Extension | Lost 9 allies 7998 | -6/Extension | Retrieved Zion intel report: Depthwide Sectors/-5 7999 | -6/Extension | Zion Hacking Resupply teleported in 8030 | -6/Extension | Discovered exit to Factory (range 10) 8036 | -6/Extension | Discovered new exit (range 6) 8122 | -6/Extension | Energy Cycler disabled 8128 | -6/Extension | Terminal network hard line cut 8187 | -6/Extension | Lost 3 allies 8299 | -6/Extension | Discovered exit to Factory (range 16) 8306 | -6/Extension | Rescued A7 8459 | -6/Extension | Entered Cetus 8459 | -6/Cetus | Accompanied by 1 ally (A7) 8464 | -6/Cetus | Acquired a Cetus Manufacturing Module code from A7 8474 | -6/Cetus | Spotted Cetus Guard 8475 | -6/Cetus | Spotted Cetus Guard 8476 | -6/Cetus | Spotted Cetus Guard 8478 | -6/Cetus | Spotted Cetus Guard 8495 | -6/Cetus | Build established: Scavenger-Gladiator 8497 | -6/Cetus | Allies destroyed Cetus Guard 8500 | -6/Cetus | Allies destroyed Cetus Guard 8508 | -6/Cetus | Allies destroyed Cetus Guard 8524 | -6/Cetus | Allies destroyed Cetus Guard 8554 | -6/Cetus | Lost 3 parts (1p1n1u) 8611 | -6/Cetus | Started Cetus Manufacturing Module 8623 | -6/Cetus | Escorted A7 to Cetus Mainframe 8636 | -6/Cetus | Manufactured an Enhanced Grunt 8661 | -6/Cetus | Manufactured an Enhanced Grunt 8686 | -6/Cetus | Manufactured an Enhanced Grunt 8711 | -6/Cetus | Manufactured an Enhanced Grunt 8736 | -6/Cetus | Manufactured an Enhanced Grunt 8769 | -6/Cetus | Found a strange terminal 8805 | -6/Cetus | Discovered new exit (range 15) 8830 | -6/Cetus | Build established: Scavenger-Mutant 8839 | -6/Cetus | Entered Archives 8839 | -6/Archives | Accompanied by 6 allies (A7) 8844 | -6/Archives | Received a hacking code to weaken MAIN.C 8897 | -6/Archives | Found Prototype Device 8897 | -6/Archives | Identified Exp. Thermal Shield 8906 | -6/Archives | Lost 4 parts (2n2u) 8909 | -6/Archives | Unable to access archive contents 8945 | -6/Archives | Discovered new exit (range 16) 8981 | -6/Archives | Discovered exit to Factory (range 16) 9113 | -6/Archives | Entered Hub_04(d) 9113 | -6/Hub_04(d) | Accompanied by 4 allies 9157 | -6/Hub_04(d) | Retrieved Zion intel report: Main Access 9192 | -6/Hub_04(d) | Retrieved Zion intel report: Active Terminals 9193 | -6/Hub_04(d) | Zion Recon squad teleported in 9359 | -6/Hub_04(d) | Zion Recon squad teleported in 9463 | -6/Hub_04(d) | First assault squad dispatched 9516 | -6/Hub_04(d) | Network Hub disabled 9517 | -6/Hub_04(d) | Disrupted transfer network 9519 | -6/Hub_04(d) | Spotted Lightning 9519 | -6/Hub_04(d) | Spotted Lightning 9520 | -6/Hub_04(d) | Spotted Lightning 9590 | -6/Hub_04(d) | System corruption reached 10% 9626 | -6/Hub_04(d) | Core integrity fell below 50% 9635 | -6/Hub_04(d) | Entered Factory 9635 | -5/Factory | Evolved 2 slots: Utility x2 9657 | -5/Factory | Lost 9 parts (2p3n3u1w) 9694 | -5/Factory | Zion Trap Resupply teleported in 10192 | -5/Factory | Self-destructed Last Messages --------------- 10181_ Slug penetrates Wall. 10181_ Slug penetrates Fusion Modulator. 10182_ Carbon-fiber Leg destroyed. 10184_ Slug penetrates Wall. 10184_ G-50 Soldier IFF system glitched. 10185_ P-70 Sage resets G-50 Soldier, system corruption cleaned. 10185_ Slug penetrates Wall. 10186_ Flexi-carbon Leg destroyed. 10187_ Slug penetrates Wall. 10189_ Fusion Modulator explodes. 10189_ Arm. Huge Wheel destroyed. 10189_ Imp. Transmission Jammer destroyed. 10189_ P-70 Sage destroyed. 10190_ Slug penetrates Wall. 10190_ Microactuators destroyed. 10190_ Slug penetrates Wall. 10190_ P-70 Sage destroyed. 10192_ Wall collapses. 10192_ Slug penetrates Wall. 10192_ R-10 Processor collects Imp. Medium Armor Plating. Map ----- +----------------------------------------------------+ | ?????????????????????????????????????????????????? | | ?????????????????????????????????????????????????? | | ?????????????????????????????????????????????????? | | ?????????????????????????????????????????????????? | | ?????????????????????????????????????????????????? | | ???????????????????????????????######????????????? | | ???????????????????????????????? #????????????? | | ???????????????????????????????? ????????????? | | ???????????????????????????????? #????????????? | | ????????????????????????????????# #????????????? | | ????????????????????????????????# #????????????? | | ????????????????????????????????# #????????????? | | ????????????????????????????????# #????????????? | | ????????????????????????????????# #????????????? | | ???????????????????# ???????????# #????????????? | | ????????????### #####"########### #?????######## | | ????????????# ####### | | ????????????# R == + | | ????????????+ h[! %####### | | ????????????# ######;g########?????# | | ???????????## w ## !%= #???????# """" " | | ???????????# #; "" #???????# """" " | | ???????????# ;; | "" #???????# """" " | | ???????????# ;; % T" #???????# """" " | | ???????????# ;;! ![* "" #???????# """" " | | ???????????# ;; @ % "" #???????# """" " | | ???????????### o ;; #???????# | | ?????????????# ;; #???????# | | ?????????????# ;; ###########"#### | | ?????????????# ; # #?? | | ?????????????# ## # #?? | | ????########## ######?# # #?? | | ????# # ???????######+###### """ """ #?? | | ????# """ # ?????????# = ??# """ """ #?? | | ????# """ # #####????# # """ """ #?? | | ????# """ # #????# """"""" # "" "" #?# | | ????# # ###??# """"""" # "" "" ### | | ????# "" "" + ???+ """"""" # + = | | ????# ""R"" # #????# """"""" # ### | | ????# """" # #????# # ## | | ????# # #????# = # #?# | | ????####+##### ##########+######+#######+##### | | ????# | | ????# | | ????# | | ????# | | ????# | | ????###########+####### ######+############+###### | | ?????????# # # #?????? ???? | | ?????????#"" # + #??????? ?? | +----------------------------------------------------+ Best States ------------- Heat Dissipation 40 Energy Generation 45 Energy Capacity 1100 Matter Stores 300 Matter Capacity 300 Sight Range 16 Robot Scan Range 15 Terrain Scan Range 16 Terrain Scan Density 10 Jamming Range 14 Armor Coverage 450 Resistance: KI 30 Resistance: TH 30 Melee Speed Boost 40 Evasion (%) 55 Melee Accuracy 8 Core Analysis 6 Armor Integrity Analysis 30 Offensive Hacking 12 Defensive Hacking 12 Trap Extractor Capacity 4 Item Schematics ----------------- Xenon Bombardment Thruster | -7/Zion | Archive Stasis Canceller | -7/Zion | Archive Core Analyzer | -7/Zion | Archive Hvy. Phase Cannon | -7/Zion | Archive Antigrav System | -7/Zion | Archive Power Maul | -7/Zion | Archive Drone Bay | -7/Zion | Archive Med. Treads | -7/Zion | Archive Imp. Trap Scanner | -7/Zion | Archive Gauss Cannon | -7/Zion | Archive EM Shield | -7/Zion | Archive Hvy. Rocket Launcher | -7/Zion | Archive Imp. Titanium Leg | -7/Zion | Archive Fission Core | -7/Zion | Archive Imp. KE Penetrator | -7/Zion | Archive Robot Schematics ------------------ M-13 Machinist | -10/Materials | Hacked H-55 Commando | -7/Zion | Archive B-36 Bruiser | -7/Zion | Archive L-41 Fighter | -7/Zion | Archive Fabricated ------------ M-13 Machinist | x1 | -7/Factory M-13 Machinist | x1 | -7/Factory Repaired ---------- Aluminum Leg | 45% | -9/Materials Alien Tech Used ----------------- None Achievements -------------- None Challenges ------------ None Game ------ Seed RecoilCombatBallwheel Manual? 0 Play Time 02:02:40 Cumulative 1152.4 hours Start 2025.05.12 @ 00:34:07 End 2025.05.12 @ 13:51:16 Sessions 3 Manual Loads 0 Difficulty Rogue Special Mode None Game No. 489 Rogue 489 Adventurer 0 Explorer 0 Win Type - Total 15 Types 13/0/1/1/0/0/0/0/0/0 Lore% 45 Gallery% 72 Achievement% 71 Wizard Run 0 Options --------- Layout 1 ASCII 0 Keyboard 1 Movement Numpad Keybinds 0 Fullscreen 1 Font 24/Proggy Map View 76x35 Zoom Use 0% Tactical HUD 1 Map Filters NONE Filters NONE Steam 1 RUN: eb661484-fe4d-48f3-9bc9-ffc9e364b8e3